[Event "Titled Tuesday Blitz June 8 2021"]
[White "Sawlin, Leonid"]
[Black "Goryachkina, Aleksandra"]
[WhiteFideId "4689542"]
[BlackFideId "4147103"]
[WhiteElo "2412"]
[BlackElo "2441"]
[Result "0-1"]
[Round "05"]
[TimeControl "180+1"]
[Date "2021.06.08"]
[WhiteClock "0:00:22"]
[BlackClock "0:00:14"]

1. e4 {[%clk 0:03:00]}  c5 {[%clk 0:02:59]} 2. Nf3 {[%clk 0:02:57]}  e6 {[%clk 0:02:59]} 3. d4 {[%clk 0:02:57]}  cxd4 {[%clk 0:02:58]} 4. Nxd4 {[%clk 0:02:58]}  a6 {[%clk 0:02:57]} 5. Nc3 {[%clk 0:02:58]}  d6 {[%clk 0:02:54]} 6. Bd3 {[%clk 0:02:58]}  Nf6 {[%clk 0:02:54]} 7. O-O {[%clk 0:02:58]}  Be7 {[%clk 0:02:54]} 8. Be3 {[%clk 0:02:58]}  Qc7 {[%clk 0:02:49]} 9. f4 {[%clk 0:02:58]}  Nc6 {[%clk 0:02:41]} 10. Qf3 {[%clk 0:02:52]}  Bd7 {[%clk 0:02:40]} 11. Qg3 {[%clk 0:02:41]}  O-O {[%clk 0:02:29]} 12. Nxc6 {[%clk 0:02:40]}  Bxc6 {[%clk 0:02:27]} 13. e5 {[%clk 0:02:40]}  Nh5 {[%clk 0:01:49]} 14. Qg4 {[%clk 0:02:27]}  g6 {[%clk 0:01:49]} 15. f5 {[%clk 0:02:21]}  exf5 {[%clk 0:01:48]} 16. Rxf5 {[%clk 0:02:21]}  Ng7 {[%clk 0:01:39]} 17. Rf2 {[%clk 0:02:09]}  dxe5 {[%clk 0:01:38]} 18. Bc4 {[%clk 0:02:09]}  b5 {[%clk 0:01:24]} 19. Bb3 {[%clk 0:02:09]}  b4 {[%clk 0:01:04]} 20. Nd5 {[%clk 0:01:31]}  Bxd5 {[%clk 0:01:02]} 21. Bxd5 {[%clk 0:01:32]}  Rad8 {[%clk 0:01:01]} 22. Bb3 {[%clk 0:01:22]}  Bc5 {[%clk 0:00:57]} 23. Bxc5 {[%clk 0:01:22]}  Qxc5 {[%clk 0:00:57]} 24. Rf1 {[%clk 0:01:23]}  Kh8 {[%clk 0:00:52]} 25. Kh1 {[%clk 0:01:18]}  f5 {[%clk 0:00:52]} 26. Qc4 {[%clk 0:01:19]}  Qxc4 {[%clk 0:00:49]} 27. Bxc4 {[%clk 0:01:20]}  a5 {[%clk 0:00:50]} 28. Re2 {[%clk 0:01:17]}  e4 {[%clk 0:00:50]} 29. g4 {[%clk 0:01:17]}  Rd4 {[%clk 0:00:45]} 30. Bb3 {[%clk 0:01:18]}  Rfd8 {[%clk 0:00:44]} 31. Kg2 {[%clk 0:01:13]}  h5 {[%clk 0:00:38]} 32. gxf5 {[%clk 0:01:11]}  Nxf5 {[%clk 0:00:30]} 33. Rf4 {[%clk 0:01:10]}  e3 {[%clk 0:00:23]} 34. Rxd4 {[%clk 0:00:56]}  Rxd4 {[%clk 0:00:24]} 35. Kf3 {[%clk 0:00:50]}  Rh4 {[%clk 0:00:22]} 36. Rg2 {[%clk 0:00:49]}  Rh3+ {[%clk 0:00:21]} 37. Ke4 {[%clk 0:00:50]}  Kg7 {[%clk 0:00:18]} 38. Be6 {[%clk 0:00:50]}  Kf6 {[%clk 0:00:17]} 39. Bxf5 {[%clk 0:00:37]}  gxf5+ {[%clk 0:00:17]} 40. Kf4 {[%clk 0:00:38]}  Ke6 {[%clk 0:00:14]} 41. Re2 {[%clk 0:00:38]}  Kd5 {[%clk 0:00:14]} 42. Kxf5 {[%clk 0:00:20]}  Rf3+ {[%clk 0:00:13]} 43. Kg5 {[%clk 0:00:21]}  Ke4 {[%clk 0:00:13]} 44. Kxh5 {[%clk 0:00:21]}  Rf2 {[%clk 0:00:14]} 45. Re1 {[%clk 0:00:21]}  Rxh2+ {[%clk 0:00:14]} 46. Kg4 {[%clk 0:00:22]}  Rxc2 {[%clk 0:00:14]} 47. Kg3 {[%clk 0:00:22]}  Rxb2 {[%clk 0:00:13]} 48. Ra1 {[%clk 0:00:22]}  a4 {[%clk 0:00:13]} 49. a3 {[%clk 0:00:20]}  b3 {[%clk 0:00:13]} 50. Rc1 {[%clk 0:00:21]}  Rc2 {[%clk 0:00:13]} 51. Rh1 {[%clk 0:00:21]}  b2 {[%clk 0:00:13]} 52. Rb1 {[%clk 0:00:22]}  Kd3 {[%clk 0:00:13]} 53. Kf3 {[%clk 0:00:23]}  Rf2+ {[%clk 0:00:13]} 54. Kg3 {[%clk 0:00:24]}  Kc2 {[%clk 0:00:13]} 55. Rxb2+ {[%clk 0:00:22]}  Kxb2 {[%clk 0:00:14]} 0-1


[Site "https://www.chess.com"]

[Event "Titled Tuesday Blitz June 8 2021"]
[White "Schmidt, Tobias"]
[Black "elcandado"]
[WhiteFideId "1271683"]
[WhiteElo "2328"]
[BlackElo "2639"]
[Result "0-1"]
[Round "05"]
[TimeControl "180+1"]
[Date "2021.06.08"]
[WhiteClock "0:00:13"]
[BlackClock "0:00:12"]

1. e4 {[%clk 0:02:05]}  e5 {[%clk 0:02:59]} 2. Nf3 {[%clk 0:02:01]}  Nc6 {[%clk 0:02:59]} 3. Bc4 {[%clk 0:02:00]}  Bc5 {[%clk 0:02:58]} 4. c3 {[%clk 0:01:59]}  Nf6 {[%clk 0:02:57]} 5. d4 {[%clk 0:01:59]}  exd4 {[%clk 0:02:56]} 6. cxd4 {[%clk 0:02:00]}  Bb4+ {[%clk 0:02:56]} 7. Bd2 {[%clk 0:02:00]}  Nxe4 {[%clk 0:02:52]} 8. Bxb4 {[%clk 0:01:59]}  Nxb4 {[%clk 0:02:52]} 9. Bxf7+ {[%clk 0:02:00]}  Kxf7 {[%clk 0:02:52]} 10. Qb3+ {[%clk 0:02:00]}  Kf8 {[%clk 0:02:52]} 11. Qxb4+ {[%clk 0:02:00]}  Qe7 {[%clk 0:02:52]} 12. Qxe7+ {[%clk 0:02:00]}  Kxe7 {[%clk 0:02:53]} 13. O-O {[%clk 0:02:01]}  Re8 {[%clk 0:02:44]} 14. Re1 {[%clk 0:01:51]}  Kf8 {[%clk 0:02:41]} 15. Ne5 {[%clk 0:01:46]}  Nf6 {[%clk 0:02:39]} 16. Nc3 {[%clk 0:01:38]}  d6 {[%clk 0:02:38]} 17. Nd3 {[%clk 0:01:34]}  Bd7 {[%clk 0:02:37]} 18. f3 {[%clk 0:01:30]}  Bf5 {[%clk 0:02:02]} 19. Nf4 {[%clk 0:01:25]}  c6 {[%clk 0:01:50]} 20. g4 {[%clk 0:01:20]}  Bd7 {[%clk 0:01:48]} 21. g5 {[%clk 0:01:19]}  Ng8 {[%clk 0:01:41]} 22. h4 {[%clk 0:01:15]}  Rxe1+ {[%clk 0:01:30]} 23. Rxe1 {[%clk 0:01:13]}  Re8 {[%clk 0:01:30]} 24. Rxe8+ {[%clk 0:01:07]}  Kxe8 {[%clk 0:01:31]} 25. Ne4 {[%clk 0:01:01]}  Ke7 {[%clk 0:01:28]} 26. Kf2 {[%clk 0:01:00]}  b6 {[%clk 0:01:26]} 27. Ke3 {[%clk 0:00:59]}  d5 {[%clk 0:01:12]} 28. Ng3 {[%clk 0:00:55]}  Kd6 {[%clk 0:01:04]} 29. b4 {[%clk 0:00:42]}  Ne7 {[%clk 0:01:03]} 30. Nfh5 {[%clk 0:00:41]}  Ng6 {[%clk 0:00:49]} 31. Nxg7 {[%clk 0:00:33]}  Nxh4 {[%clk 0:00:49]} 32. N7h5 {[%clk 0:00:24]}  Nf5+ {[%clk 0:00:33]} 33. Nxf5+ {[%clk 0:00:21]}  Bxf5 {[%clk 0:00:34]} 34. a3 {[%clk 0:00:15]}  c5 {[%clk 0:00:32]} 35. Ng7 {[%clk 0:00:14]}  Bg6 {[%clk 0:00:29]} 36. f4 {[%clk 0:00:12]}  cxb4 {[%clk 0:00:28]} 37. axb4 {[%clk 0:00:12]}  a5 {[%clk 0:00:27]} 38. bxa5 {[%clk 0:00:12]}  bxa5 {[%clk 0:00:28]} 39. f5 {[%clk 0:00:10]}  Bf7 {[%clk 0:00:28]} 40. Kd2 {[%clk 0:00:08]}  Kc6 {[%clk 0:00:21]} 41. Kc3 {[%clk 0:00:08]}  Kb5 {[%clk 0:00:20]} 42. Ne6 {[%clk 0:00:07]}  Bxe6 {[%clk 0:00:17]} 43. fxe6 {[%clk 0:00:06]}  Kc6 {[%clk 0:00:17]} 44. Kb3 {[%clk 0:00:05]}  Kd6 {[%clk 0:00:18]} 45. Ka4 {[%clk 0:00:06]}  Kxe6 {[%clk 0:00:18]} 46. Kxa5 {[%clk 0:00:06]}  Kf5 {[%clk 0:00:18]} 47. Kb5 {[%clk 0:00:07]}  Kxg5 {[%clk 0:00:18]} 48. Kc5 {[%clk 0:00:07]}  h5 {[%clk 0:00:19]} 49. Kxd5 {[%clk 0:00:08]}  h4 {[%clk 0:00:19]} 50. Kc6 {[%clk 0:00:09]}  h3 {[%clk 0:00:19]} 51. d5 {[%clk 0:00:09]}  h2 {[%clk 0:00:20]} 52. d6 {[%clk 0:00:10]}  h1=Q+ {[%clk 0:00:20]} 53. Kc7 {[%clk 0:00:11]}  Qc1+ {[%clk 0:00:17]} 54. Kd7 {[%clk 0:00:11]}  Kf6 {[%clk 0:00:16]} 55. Kd8 {[%clk 0:00:10]}  Ke6 {[%clk 0:00:14]} 56. Ke8 {[%clk 0:00:10]}  Qc6+ {[%clk 0:00:14]} 57. Kf8 {[%clk 0:00:10]}  Qxd6+ {[%clk 0:00:14]} 58. Kg7 {[%clk 0:00:11]}  Ke5 {[%clk 0:00:14]} 59. Kh8 {[%clk 0:00:11]}  Qe7 {[%clk 0:00:13]} 60. Kg8 {[%clk 0:00:12]}  Kf6 {[%clk 0:00:13]} 61. Kh8 {[%clk 0:00:13]}  Qg7# {[%clk 0:00:12]} 0-1


[Site "https://www.chess.com"]

[Event "Titled Tuesday Blitz June 8 2021"]
[White "Shahade, Gregory"]
[Black "Prydun, Andriy"]
[WhiteFideId "2009064"]
[BlackFideId "14145898"]
[WhiteElo "2703"]
[BlackElo "2028"]
[Result "1-0"]
[Round "05"]
[TimeControl "180+1"]
[Date "2021.06.08"]
[WhiteClock "0:00:41"]
[BlackClock "0:00:21"]

1. e4 {[%clk 0:03:00]}  d5 {[%clk 0:03:00]} 2. exd5 {[%clk 0:03:00]}  Qxd5 {[%clk 0:03:01]} 3. Nc3 {[%clk 0:03:00]}  Qd6 {[%clk 0:03:01]} 4. d4 {[%clk 0:03:00]}  Nf6 {[%clk 0:03:02]} 5. Nf3 {[%clk 0:03:00]}  c6 {[%clk 0:03:02]} 6. h3 {[%clk 0:03:01]}  Bf5 {[%clk 0:03:02]} 7. Nh4 {[%clk 0:03:01]}  Be6 {[%clk 0:03:02]} 8. Be2 {[%clk 0:02:58]}  g6 {[%clk 0:03:01]} 9. O-O {[%clk 0:02:57]}  Bg7 {[%clk 0:03:01]} 10. Nf3 {[%clk 0:02:41]}  Nbd7 {[%clk 0:03:00]} 11. Bg5 {[%clk 0:02:40]}  O-O {[%clk 0:02:59]} 12. Qd2 {[%clk 0:02:38]}  Rfd8 {[%clk 0:02:53]} 13. Rad1 {[%clk 0:02:38]}  Qb4 {[%clk 0:02:43]} 14. Qc1 {[%clk 0:02:37]}  Rac8 {[%clk 0:02:32]} 15. a3 {[%clk 0:02:36]}  Qb6 {[%clk 0:02:31]} 16. Rfe1 {[%clk 0:02:36]}  c5 {[%clk 0:02:28]} 17. d5 {[%clk 0:02:36]}  Bf5 {[%clk 0:02:24]} 18. g4 {[%clk 0:02:28]}  Be4 {[%clk 0:02:23]} 19. Nxe4 {[%clk 0:02:23]}  Nxe4 {[%clk 0:02:22]} 20. Bxe7 {[%clk 0:02:22]}  Re8 {[%clk 0:02:22]} 21. d6 {[%clk 0:02:20]}  Bxb2 {[%clk 0:02:14]} 22. Qf4 {[%clk 0:02:20]}  Nc3 {[%clk 0:02:06]} 23. Bc4 {[%clk 0:02:19]}  Rf8 {[%clk 0:02:00]} 24. Rd3 {[%clk 0:02:03]}  Qc6 {[%clk 0:01:10]} 25. Bxf8 {[%clk 0:01:58]}  Rxf8 {[%clk 0:01:09]} 26. Re8 {[%clk 0:01:53]}  Nf6 {[%clk 0:00:46]} 27. Rxf8+ {[%clk 0:01:09]}  Kxf8 {[%clk 0:00:47]} 28. Re3 {[%clk 0:01:09]}  Ncd5 {[%clk 0:00:44]} 29. Qh6+ {[%clk 0:00:53]}  Kg8 {[%clk 0:00:45]} 30. Bxd5 {[%clk 0:00:53]}  Nxd5 {[%clk 0:00:45]} 31. Ng5 {[%clk 0:00:48]}  Bg7 {[%clk 0:00:44]} 32. Qxh7+ {[%clk 0:00:44]}  Kf8 {[%clk 0:00:44]} 33. Rf3 {[%clk 0:00:45]}  Qe8 {[%clk 0:00:21]} 34. Rxf7+ {[%clk 0:00:41]}  Qxf7 {[%clk 0:00:22]} 35. Nxf7 {[%clk 0:00:41]}  Kxf7 {[%clk 0:00:21]} 36. d7 {[%clk 0:00:41]} 1-0


[Site "https://www.chess.com"]

[Event "Titled Tuesday Blitz June 8 2021"]
[White "Sirosh, Ilja"]
[Black "Rustemov, Alexander"]
[WhiteFideId "4500458"]
[BlackFideId "4119002"]
[WhiteElo "2241"]
[BlackElo "2707"]
[Result "1-0"]
[Round "05"]
[TimeControl "180+1"]
[Date "2021.06.08"]
[WhiteClock "0:00:32"]
[BlackClock "0:00:05"]

1. e4 {[%clk 0:03:00]}  e6 {[%clk 0:02:59]} 2. d4 {[%clk 0:03:00]}  d5 {[%clk 0:03:00]} 3. exd5 {[%clk 0:03:01]}  exd5 {[%clk 0:03:00]} 4. Nf3 {[%clk 0:03:01]}  Bf5 {[%clk 0:03:01]} 5. c4 {[%clk 0:02:50]}  Bxb1 {[%clk 0:03:00]} 6. Qa4+ {[%clk 0:02:46]}  Qd7 {[%clk 0:02:49]} 7. Qxd7+ {[%clk 0:02:41]}  Nxd7 {[%clk 0:02:49]} 8. Rxb1 {[%clk 0:02:42]}  Ngf6 {[%clk 0:02:33]} 9. c5 {[%clk 0:02:33]}  Be7 {[%clk 0:02:09]} 10. Bf4 {[%clk 0:02:32]}  c6 {[%clk 0:02:05]} 11. b4 {[%clk 0:02:25]}  a6 {[%clk 0:02:04]} 12. a4 {[%clk 0:02:22]}  O-O {[%clk 0:02:02]} 13. Bd3 {[%clk 0:02:16]}  Rfe8 {[%clk 0:02:00]} 14. O-O {[%clk 0:02:14]}  Nf8 {[%clk 0:02:00]} 15. b5 {[%clk 0:02:07]}  axb5 {[%clk 0:01:59]} 16. axb5 {[%clk 0:02:08]}  Ne6 {[%clk 0:01:58]} 17. Be5 {[%clk 0:01:59]}  Nd7 {[%clk 0:01:58]} 18. bxc6 {[%clk 0:01:59]}  bxc6 {[%clk 0:01:58]} 19. Rb4 {[%clk 0:01:31]}  Ra3 {[%clk 0:01:30]} 20. Bf5 {[%clk 0:01:29]}  Ndf8 {[%clk 0:01:06]} 21. Rfb1 {[%clk 0:01:21]}  g6 {[%clk 0:01:05]} 22. Bc2 {[%clk 0:01:14]}  Nd7 {[%clk 0:00:58]} 23. Ba4 {[%clk 0:01:09]}  Rc8 {[%clk 0:00:54]} 24. h3 {[%clk 0:01:06]}  Bf6 {[%clk 0:00:54]} 25. Bxf6 {[%clk 0:01:04]}  Nxf6 {[%clk 0:00:55]} 26. Ne5 {[%clk 0:01:05]}  Nd8 {[%clk 0:00:22]} 27. Rb8 {[%clk 0:00:55]}  Rxb8 {[%clk 0:00:22]} 28. Rxb8 {[%clk 0:00:56]}  Rxa4 {[%clk 0:00:23]} 29. Rxd8+ {[%clk 0:00:56]}  Kg7 {[%clk 0:00:23]} 30. Nxc6 {[%clk 0:00:56]}  Ra1+ {[%clk 0:00:23]} 31. Kh2 {[%clk 0:00:56]}  Rc1 {[%clk 0:00:23]} 32. Ne5 {[%clk 0:00:53]}  Rc2 {[%clk 0:00:22]} 33. c6 {[%clk 0:00:51]}  h5 {[%clk 0:00:18]} 34. Rd7 {[%clk 0:00:51]}  Ne4 {[%clk 0:00:16]} 35. Rxf7+ {[%clk 0:00:48]}  Kh6 {[%clk 0:00:16]} 36. c7 {[%clk 0:00:47]}  Nd6 {[%clk 0:00:14]} 37. Rd7 {[%clk 0:00:45]}  Nf5 {[%clk 0:00:14]} 38. Nf7+ {[%clk 0:00:40]}  Kg7 {[%clk 0:00:11]} 39. Ng5+ {[%clk 0:00:40]}  Kf6 {[%clk 0:00:11]} 40. f4 {[%clk 0:00:40]}  Nh6 {[%clk 0:00:05]} 41. Kg1 {[%clk 0:00:37]}  Kf5 {[%clk 0:00:05]} 42. Rxd5+ {[%clk 0:00:32]}  Kxf4 {[%clk 0:00:05]} 43. Rc5 {[%clk 0:00:32]} 1-0


[Site "https://www.chess.com"]

[Event "Titled Tuesday Blitz June 8 2021"]
[White "Stark, Lars"]
[Black "Priasmoro, Novendra"]
[WhiteFideId "4676386"]
[BlackFideId "7105029"]
[WhiteElo "2474"]
[BlackElo "2309"]
[Result "0-1"]
[Round "05"]
[TimeControl "180+1"]
[Date "2021.06.08"]
[WhiteClock "0:02:25"]
[BlackClock "0:01:26"]

1. c4 {[%clk 0:03:00]}  Nf6 {[%clk 0:02:59]} 2. g3 {[%clk 0:03:00]}  g6 {[%clk 0:02:58]} 3. Bg2 {[%clk 0:03:01]}  Bg7 {[%clk 0:02:59]} 4. Nc3 {[%clk 0:03:02]}  O-O {[%clk 0:02:58]} 5. e4 {[%clk 0:03:02]}  d6 {[%clk 0:02:59]} 6. Nge2 {[%clk 0:03:03]}  c5 {[%clk 0:02:56]} 7. O-O {[%clk 0:03:03]}  Nc6 {[%clk 0:02:56]} 8. a3 {[%clk 0:03:03]}  a6 {[%clk 0:02:47]} 9. Rb1 {[%clk 0:03:03]}  Rb8 {[%clk 0:02:48]} 10. b4 {[%clk 0:03:04]}  cxb4 {[%clk 0:02:49]} 11. axb4 {[%clk 0:03:05]}  b5 {[%clk 0:02:50]} 12. cxb5 {[%clk 0:03:06]}  axb5 {[%clk 0:02:51]} 13. d4 {[%clk 0:03:06]}  Bd7 {[%clk 0:02:40]} 14. h3 {[%clk 0:03:07]}  Qc8 {[%clk 0:02:21]} 15. Kh2 {[%clk 0:03:07]}  Nxd4 {[%clk 0:02:05]} 16. Qxd4 {[%clk 0:03:05]}  Ng4+ {[%clk 0:02:04]} 17. hxg4 {[%clk 0:03:05]}  Bxd4 {[%clk 0:02:05]} 18. Nxd4 {[%clk 0:03:06]}  Qxc3 {[%clk 0:02:05]} 19. Be3 {[%clk 0:03:06]}  Qc8 {[%clk 0:01:58]} 20. Rfc1 {[%clk 0:03:06]}  Qd8 {[%clk 0:01:56]} 21. Ra1 {[%clk 0:02:41]}  e5 {[%clk 0:01:51]} 22. Nc6 {[%clk 0:02:38]}  Bxc6 {[%clk 0:01:51]} 23. Rxc6 {[%clk 0:02:39]}  Qd7 {[%clk 0:01:41]} 24. Rca6 {[%clk 0:02:38]}  Qxg4 {[%clk 0:01:38]} 25. Rxd6 {[%clk 0:02:35]}  Rfd8 {[%clk 0:01:38]} 26. Rf6 {[%clk 0:02:35]}  Kg7 {[%clk 0:01:35]} 27. Rfa6 {[%clk 0:02:35]}  Rd1 {[%clk 0:01:28]} 28. R1a2 {[%clk 0:02:33]}  Qh5+ {[%clk 0:01:28]} 29. Bh3 {[%clk 0:02:33]}  Rbd8 {[%clk 0:01:27]} 30. Kg2 {[%clk 0:02:25]}  Rh1 {[%clk 0:01:26]} 0-1


[Site "https://www.chess.com"]

[Event "Titled Tuesday Blitz June 8 2021"]
[White "Svane, Rasmus"]
[Black "Chasin, Nico"]
[WhiteFideId "4657101"]
[BlackFideId "30908477"]
[WhiteElo "2669"]
[BlackElo "2135"]
[Result "1-0"]
[Round "05"]
[TimeControl "180+1"]
[Date "2021.06.08"]
[WhiteClock "0:00:31"]
[BlackClock "0:00:17"]

1. Nf3 {[%clk 0:03:00]}  Nf6 {[%clk 0:02:59]} 2. g3 {[%clk 0:03:00]}  d5 {[%clk 0:02:59]} 3. Bg2 {[%clk 0:03:01]}  Bg4 {[%clk 0:03:00]} 4. O-O {[%clk 0:03:02]}  Nbd7 {[%clk 0:03:00]} 5. h3 {[%clk 0:03:02]}  Bxf3 {[%clk 0:02:59]} 6. Bxf3 {[%clk 0:03:03]}  e5 {[%clk 0:02:59]} 7. d3 {[%clk 0:03:04]}  Bd6 {[%clk 0:02:59]} 8. e4 {[%clk 0:03:04]}  dxe4 {[%clk 0:02:58]} 9. dxe4 {[%clk 0:03:05]}  O-O {[%clk 0:02:59]} 10. Nd2 {[%clk 0:03:06]}  h6 {[%clk 0:02:59]} 11. Nc4 {[%clk 0:03:03]}  Bc5 {[%clk 0:02:55]} 12. a4 {[%clk 0:03:03]}  a5 {[%clk 0:02:53]} 13. Bd2 {[%clk 0:03:03]}  b6 {[%clk 0:02:52]} 14. Qe1 {[%clk 0:03:03]}  Qe7 {[%clk 0:02:49]} 15. Qe2 {[%clk 0:03:02]}  Rfd8 {[%clk 0:02:47]} 16. Kg2 {[%clk 0:02:59]}  Nf8 {[%clk 0:02:47]} 17. Rfd1 {[%clk 0:02:59]}  Ne6 {[%clk 0:02:30]} 18. c3 {[%clk 0:02:58]}  Ng5 {[%clk 0:02:30]} 19. Bxg5 {[%clk 0:02:31]}  hxg5 {[%clk 0:02:29]} 20. Rd2 {[%clk 0:02:31]}  Rxd2 {[%clk 0:01:57]} 21. Qxd2 {[%clk 0:02:32]}  Qe6 {[%clk 0:01:57]} 22. b3 {[%clk 0:02:31]}  g4 {[%clk 0:01:50]} 23. Bxg4 {[%clk 0:02:17]}  Nxg4 {[%clk 0:01:19]} 24. hxg4 {[%clk 0:02:18]}  Qxg4 {[%clk 0:01:18]} 25. Qd5 {[%clk 0:02:17]}  Re8 {[%clk 0:01:19]} 26. Rd1 {[%clk 0:01:42]}  Qe6 {[%clk 0:00:59]} 27. Qxe6 {[%clk 0:01:37]}  Rxe6 {[%clk 0:01:00]} 28. Rd8+ {[%clk 0:01:36]}  Kh7 {[%clk 0:00:59]} 29. Rd7 {[%clk 0:01:34]}  Rf6 {[%clk 0:00:59]} 30. f3 {[%clk 0:01:32]}  Bd6 {[%clk 0:00:51]} 31. f4 {[%clk 0:01:24]}  Re6 {[%clk 0:00:24]} 32. f5 {[%clk 0:00:58]}  Re7 {[%clk 0:00:24]} 33. Rxe7 {[%clk 0:00:54]}  Bxe7 {[%clk 0:00:25]} 34. Nxe5 {[%clk 0:00:54]}  Bf6 {[%clk 0:00:26]} 35. Nxf7 {[%clk 0:00:47]}  Bxc3 {[%clk 0:00:27]} 36. e5 {[%clk 0:00:37]}  Kg8 {[%clk 0:00:26]} 37. e6 {[%clk 0:00:36]}  Kf8 {[%clk 0:00:26]} 38. Kf3 {[%clk 0:00:35]}  Ke7 {[%clk 0:00:26]} 39. Ke4 {[%clk 0:00:35]}  c6 {[%clk 0:00:27]} 40. Ne5 {[%clk 0:00:33]}  Kd6 {[%clk 0:00:17]} 41. Nc4+ {[%clk 0:00:32]}  Kc7 {[%clk 0:00:17]} 42. Nxb6 {[%clk 0:00:31]} 1-0


[Site "https://www.chess.com"]

[Event "Titled Tuesday Blitz June 8 2021"]
[White "Tabatabaei, M. Amin"]
[Black "Narayanan, Srinath"]
[WhiteFideId "12521213"]
[BlackFideId "5018420"]
[WhiteElo "2555"]
[BlackElo "2472"]
[Result "1-0"]
[Round "05"]
[TimeControl "180+1"]
[Date "2021.06.08"]
[WhiteClock "0:01:17"]
[BlackClock "0:00:54"]

1. d4 {[%clk 0:03:00]}  Nf6 {[%clk 0:02:58]} 2. Nf3 {[%clk 0:03:01]}  d5 {[%clk 0:02:58]} 3. Bf4 {[%clk 0:03:01]}  c5 {[%clk 0:02:58]} 4. e3 {[%clk 0:03:02]}  Nc6 {[%clk 0:02:57]} 5. Nbd2 {[%clk 0:03:02]}  Qb6 {[%clk 0:02:58]} 6. dxc5 {[%clk 0:02:58]}  Qxc5 {[%clk 0:02:46]} 7. c4 {[%clk 0:02:56]}  g6 {[%clk 0:02:39]} 8. Rc1 {[%clk 0:02:47]}  Bg7 {[%clk 0:02:33]} 9. a3 {[%clk 0:02:42]}  dxc4 {[%clk 0:02:28]} 10. Bxc4 {[%clk 0:02:41]}  Qb6 {[%clk 0:02:17]} 11. b4 {[%clk 0:02:41]}  O-O {[%clk 0:02:17]} 12. h3 {[%clk 0:02:39]}  Bf5 {[%clk 0:01:55]} 13. O-O {[%clk 0:02:39]}  Rac8 {[%clk 0:01:44]} 14. Qb3 {[%clk 0:02:34]}  h6 {[%clk 0:01:33]} 15. g4 {[%clk 0:02:32]}  Bd7 {[%clk 0:01:25]} 16. Rfd1 {[%clk 0:02:28]}  h5 {[%clk 0:01:23]} 17. g5 {[%clk 0:02:26]}  Ne8 {[%clk 0:01:21]} 18. Kg2 {[%clk 0:02:15]}  e5 {[%clk 0:01:19]} 19. Bg3 {[%clk 0:02:12]}  Nd6 {[%clk 0:01:20]} 20. Bd5 {[%clk 0:02:04]}  a5 {[%clk 0:01:12]} 21. Nc4 {[%clk 0:01:53]}  Nxc4 {[%clk 0:01:11]} 22. Bxc4 {[%clk 0:01:54]}  axb4 {[%clk 0:01:10]} 23. Rxd7 {[%clk 0:01:53]}  Na5 {[%clk 0:01:10]} 24. Bxf7+ {[%clk 0:01:38]}  Kh8 {[%clk 0:01:10]} 25. Qxb4 {[%clk 0:01:28]}  Qxb4 {[%clk 0:01:00]} 26. axb4 {[%clk 0:01:29]}  Rxc1 {[%clk 0:01:00]} 27. bxa5 {[%clk 0:01:28]}  e4 {[%clk 0:01:01]} 28. Nh4 {[%clk 0:01:26]}  Ra8 {[%clk 0:01:00]} 29. Nxg6+ {[%clk 0:01:16]}  Kh7 {[%clk 0:01:00]} 30. Nh4 {[%clk 0:01:17]}  Rxa5 {[%clk 0:00:54]} 1-0


[Site "https://www.chess.com"]